[Event "Early-Titled-Tuesday-Blitz-November-28-2023"]
[Site "Chess.com"]
[Date "2023.11.28"]
[Round "9"]
[White "chess_blitz00"]
[Black "RamonManon0g"]
[Result "0-1"]
[WhiteElo "2479"]
[BlackElo "2361"]
[TimeControl "180+1"]
[EndTime "9:53:13 PST"]
[Termination "RamonManon0g won on time"]

1. b3 {[%clk 0:03:00.9]} 1... e5 {[%clk 0:02:56.2]} 2. Bb2 {[%clk 0:03:01.8]}
2... d6 {[%clk 0:02:56.2]} 3. d4 {[%clk 0:02:59]} 3... exd4 {[%clk 0:02:54.4]}
4. Qxd4 {[%clk 0:02:59.9]} 4... Nc6 {[%clk 0:02:54.3]} 5. Qa4 {[%clk 0:02:57.6]}
5... Nf6 {[%clk 0:02:53.4]} 6. e4 {[%clk 0:02:56.6]} 6... Be7 {[%clk 0:02:52.6]}
7. Nc3 {[%clk 0:02:54.9]} 7... O-O {[%clk 0:02:51.7]} 8. O-O-O {[%clk
0:02:55.5]} 8... a6 {[%clk 0:02:49.9]} 9. Qc4 {[%clk 0:02:51.6]} 9... Be6 {[%clk
0:02:42.6]} 10. Qe2 {[%clk 0:02:49.4]} 10... Re8 {[%clk 0:02:36.9]} 11. f3
{[%clk 0:02:39.8]} 11... Bf8 {[%clk 0:02:35.5]} 12. Qd2 {[%clk 0:02:29.9]} 12...
g6 {[%clk 0:02:16.4]} 13. Kb1 {[%clk 0:02:28.6]} 13... Bg7 {[%clk 0:02:16.5]}
14. h4 {[%clk 0:02:23.4]} 14... h6 {[%clk 0:02:15.4]} 15. h5 {[%clk 0:02:22.5]}
15... g5 {[%clk 0:02:15.4]} 16. Nh3 {[%clk 0:02:14.1]} 16... Ne5 {[%clk
0:02:09.4]} 17. Be2 {[%clk 0:02:09.9]} 17... Nxh5 {[%clk 0:00:56.2]} 18. Nxg5
{[%clk 0:02:00.5]} 18... Qxg5 {[%clk 0:00:56.2]} 19. Qxg5 {[%clk 0:01:59.9]}
19... hxg5 {[%clk 0:00:57.1]} 20. Rxh5 {[%clk 0:02:00.3]} 20... Bf6 {[%clk
0:00:55.5]} 21. Nd5 {[%clk 0:01:54.5]} 21... Bxd5 {[%clk 0:00:55.1]} 22. Rxd5
{[%clk 0:01:55.4]} 22... Kg7 {[%clk 0:00:49.5]} 23. Bxe5 {[%clk 0:01:49.4]}
23... dxe5 {[%clk 0:00:47.5]} 24. Rh1 {[%clk 0:01:47]} 24... Rad8 {[%clk
0:00:42.5]} 25. Rhd1 {[%clk 0:01:36.8]} 25... Rxd5 {[%clk 0:00:40]} 26. exd5
{[%clk 0:01:37.7]} 26... e4 {[%clk 0:00:38]} 27. fxe4 {[%clk 0:01:29.3]} 27...
Rxe4 {[%clk 0:00:38.9]} 28. Bf3 {[%clk 0:01:29.3]} 28... Re3 {[%clk 0:00:33.5]}
29. a3 {[%clk 0:01:24.3]} 29... b6 {[%clk 0:00:30.3]} 30. b4 {[%clk 0:01:23]}
30... Rxa3 {[%clk 0:00:28.7]} 31. c3 {[%clk 0:01:23.2]} 31... Bxc3 {[%clk
0:00:19.7]} 32. Kc2 {[%clk 0:01:23.4]} 32... Bxb4 {[%clk 0:00:19.7]} 33. Rd4
{[%clk 0:01:18.9]} 33... Bd6 {[%clk 0:00:19.4]} 34. Rg4 {[%clk 0:01:15.3]} 34...
Kf6 {[%clk 0:00:19.4]} 35. Rc4 {[%clk 0:01:14.4]} 35... a5 {[%clk 0:00:19.4]}
36. Kb2 {[%clk 0:00:53.5]} 36... a4 {[%clk 0:00:15.5]} 37. Rc6 {[%clk
0:00:43.2]} 37... Rb3+ {[%clk 0:00:14.4]} 38. Ka2 {[%clk 0:00:43.1]} 38... b5
{[%clk 0:00:14.4]} 39. Rc1 {[%clk 0:00:37.2]} 39... b4 {[%clk 0:00:14.2]} 40.
Rf1 {[%clk 0:00:35.8]} 40... Ra3+ {[%clk 0:00:13.9]} 41. Kb2 {[%clk 0:00:34.9]}
41... Be5+ {[%clk 0:00:14.1]} 42. Kc2 {[%clk 0:00:35.3]} 42... Ra2+ {[%clk
0:00:12.4]} 43. Kd3 {[%clk 0:00:35.4]} 43... b3 {[%clk 0:00:10.4]} 44. d6 {[%clk
0:00:24.4]} 44... cxd6 {[%clk 0:00:10]} 45. Bd5+ {[%clk 0:00:24.5]} 45... Kg6
{[%clk 0:00:08.6]} 46. Bxf7+ {[%clk 0:00:22.4]} 46... Kg7 {[%clk 0:00:07.4]} 47.
Bd5 {[%clk 0:00:19.6]} 47... Bf4 {[%clk 0:00:06.9]} 48. Kc3 {[%clk 0:00:07]}
48... Rc2+ {[%clk 0:00:06.5]} 49. Kb4 {[%clk 0:00:07.2]} 49... Rc1 {[%clk
0:00:06.5]} 50. Rxc1 {[%clk 0:00:05.7]} 50... Bxc1 {[%clk 0:00:07.4]} 51. Kxa4
{[%clk 0:00:06.1]} 51... b2 {[%clk 0:00:07.8]} 52. Be4 {[%clk 0:00:06.6]} 52...
Kf6 {[%clk 0:00:08]} 53. Kb3 {[%clk 0:00:06]} 53... Ke5 {[%clk 0:00:08.5]} 54.
Bd3 {[%clk 0:00:04.3]} 54... Kd4 {[%clk 0:00:08.1]} 55. Bb1 {[%clk 0:00:02.9]}
55... d5 {[%clk 0:00:09]} 56. Kc2 {[%clk 0:00:02.9]} 56... Ke3 {[%clk
0:00:09.5]} 57. Kd1 {[%clk 0:00:03.3]} 57... Kf2 {[%clk 0:00:09.7]} 58. g4
{[%clk 0:00:03.2]} 58... Ke3 {[%clk 0:00:08.6]} 59. Bf5 {[%clk 0:00:03.5]} 59...
d4 {[%clk 0:00:08.9]} 60. Kc2 {[%clk 0:00:01.6]} 60... Kf4 {[%clk 0:00:08.3]}
61. Kb1 {[%clk 0:00:01.7]} 61... d3 {[%clk 0:00:06.2]} 62. Bxd3 {[%clk
0:00:01.3]} 62... Kxg4 {[%clk 0:00:07]} 63. Kc2 {[%clk 0:00:01.7]} 63... Kf3
{[%clk 0:00:07.6]} 64. Kd1 {[%clk 0:00:02.4]} 64... Kf2 {[%clk 0:00:07.1]} 65.
Be4 {[%clk 0:00:02.3]} 65... g4 {[%clk 0:00:07.3]} 66. Kc2 {[%clk 0:00:02.9]}
66... g3 {[%clk 0:00:07.5]} 67. Kb1 {[%clk 0:00:03.6]} 67... Ke3 {[%clk
0:00:05.8]} 68. Bg2 {[%clk 0:00:03.9]} 68... Kf2 {[%clk 0:00:05.9]} 69. Bh1
{[%clk 0:00:04.5]} 69... g2 {[%clk 0:00:06.7]} 70. Bxg2 {[%clk 0:00:05]} 70...
Kxg2 {[%clk 0:00:07.6]} 71. Kc2 {[%clk 0:00:05.7]} 71... Kf3 {[%clk 0:00:08.2]}
72. Kb1 {[%clk 0:00:06.6]} 72... Ke3 {[%clk 0:00:08.8]} 73. Kc2 {[%clk
0:00:07.4]} 73... Ke2 {[%clk 0:00:07.7]} 74. Kb1 {[%clk 0:00:06.2]} 74... Kd2
{[%clk 0:00:08.2]} 75. Ka2 {[%clk 0:00:05.8]} 75... Kc2 {[%clk 0:00:08.7]} 76.
Ka3 {[%clk 0:00:05.7]} 76... b1=Q+ {[%clk 0:00:09.5]} 0-1

[Event "Early-Titled-Tuesday-Blitz-November-28-2023"]
[Site "Chess.com"]
[Date "2023.11.28"]
[Round "9"]
[White "IwkooO"]
[Black "platy3"]
[Result "1/2-1/2"]
[WhiteElo "2690"]
[BlackElo "2876"]
[TimeControl "180+1"]
[EndTime "9:53:17 PST"]
[Termination "Game drawn by agreement"]

1. e4 {[%clk 0:02:53.7]} 1... e5 {[%clk 0:02:59.3]} 2. Nf3 {[%clk 0:02:52.5]}
2... Nc6 {[%clk 0:02:59.1]} 3. Bb5 {[%clk 0:02:46.6]} 3... a6 {[%clk 0:02:55.5]}
4. Ba4 {[%clk 0:02:46.6]} 4... Nge7 {[%clk 0:02:55.7]} 5. c3 {[%clk 0:02:44.2]}
5... Ng6 {[%clk 0:02:55]} 6. d4 {[%clk 0:02:43.7]} 6... exd4 {[%clk 0:02:55.9]}
7. cxd4 {[%clk 0:02:44.3]} 7... Bb4+ {[%clk 0:02:56]} 8. Bd2 {[%clk 0:02:38.4]}
8... Bxd2+ {[%clk 0:02:55.2]} 9. Nbxd2 {[%clk 0:02:39.3]} 9... d5 {[%clk
0:02:46.1]} 10. O-O {[%clk 0:02:33.2]} 10... O-O {[%clk 0:02:43.5]} 11. Bxc6
{[%clk 0:02:27.2]} 11... bxc6 {[%clk 0:02:42.2]} 12. e5 {[%clk 0:02:27.9]} 12...
f6 {[%clk 0:02:41.2]} 13. Re1 {[%clk 0:02:20.7]} 13... Nf4 {[%clk 0:01:47.6]}
14. Qc2 {[%clk 0:02:16.4]} 14... Qd7 {[%clk 0:01:45.3]} 15. h3 {[%clk
0:02:05.3]} 15... Nxg2 {[%clk 0:01:08.8]} 16. Kxg2 {[%clk 0:02:04.2]} 16...
Qxh3+ {[%clk 0:01:08.9]} 17. Kg1 {[%clk 0:02:04.6]} 17... fxe5 {[%clk
0:01:09.7]} 18. Re3 {[%clk 0:01:24.5]} 18... Qg4+ {[%clk 0:00:43]} 19. Kh1
{[%clk 0:01:20.8]} 19... exd4 {[%clk 0:00:43]} 20. Nh2 {[%clk 0:01:12.7]} 20...
Qh5 {[%clk 0:00:39.5]} 21. Rg3 {[%clk 0:00:48.9]} 21... Rxf2 {[%clk 0:00:36.7]}
22. Rg2 {[%clk 0:00:49.2]} 22... Rxg2 {[%clk 0:00:35.7]} 23. Kxg2 {[%clk
0:00:50.1]} 23... Bd7 {[%clk 0:00:25.7]} 24. Ndf3 {[%clk 0:00:43.7]} 24... Re8
{[%clk 0:00:24.3]} 25. Re1 {[%clk 0:00:41.1]} 25... Rxe1 {[%clk 0:00:22.4]} 26.
Nxe1 {[%clk 0:00:41]} 26... Qg5+ {[%clk 0:00:23.2]} 27. Kh1 {[%clk 0:00:36.5]}
27... Qe3 {[%clk 0:00:21.9]} 28. Nef3 {[%clk 0:00:28.9]} 28... h6 {[%clk
0:00:21.8]} 29. Qd2 {[%clk 0:00:28.8]} 29... Qxd2 {[%clk 0:00:12.6]} 30. Nxd2
{[%clk 0:00:29.7]} 30... Kf7 {[%clk 0:00:13.1]} 31. Nb3 {[%clk 0:00:29.6]} 31...
Kf6 {[%clk 0:00:13.5]} 32. Nf3 {[%clk 0:00:27.6]} 32... Kf5 {[%clk 0:00:09.6]}
33. Nc5 {[%clk 0:00:25.8]} 33... Bc8 {[%clk 0:00:08.3]} 34. Nxd4+ {[%clk
0:00:25.4]} 34... Ke5 {[%clk 0:00:07.9]} 35. Ndb3 {[%clk 0:00:20.4]} 35... d4
{[%clk 0:00:05.4]} 36. Kg2 {[%clk 0:00:20.9]} 36... Kd5 {[%clk 0:00:04.2]} 37.
Nd3 {[%clk 0:00:20.9]} 37... g5 {[%clk 0:00:02.9]} 38. Kg3 {[%clk 0:00:17.8]}
38... Kc4 {[%clk 0:00:02.3]} 39. Ne5+ {[%clk 0:00:17.7]} 39... Kd5 {[%clk
0:00:02.9]} 40. Nf7 {[%clk 0:00:18]} 40... c5 {[%clk 0:00:01.2]} 41. Nxh6 {[%clk
0:00:14.9]} 41... c4 {[%clk 0:00:02.1]} 42. Nd2 {[%clk 0:00:15.3]} 42... c3
{[%clk 0:00:02.7]} 43. bxc3 {[%clk 0:00:16.2]} 43... dxc3 {[%clk 0:00:03.6]} 44.
Nb3 {[%clk 0:00:16.9]} 44... Kc4 {[%clk 0:00:04.4]} 45. Nf7 {[%clk 0:00:17]}
45... c2 {[%clk 0:00:03.4]} 46. Nxg5 {[%clk 0:00:15.9]} 46... Kc3 {[%clk
0:00:03.6]} 47. Ne4+ {[%clk 0:00:11.7]} 47... Kb2 {[%clk 0:00:04.5]} 48. Nec5
{[%clk 0:00:11.9]} 48... Kxa2 {[%clk 0:00:04.9]} 49. Kf2 {[%clk 0:00:10.5]}
49... a5 {[%clk 0:00:05.5]} 50. Ke3 {[%clk 0:00:09.1]} 50... a4 {[%clk
0:00:06.1]} 51. Nc1+ {[%clk 0:00:09.4]} 51... Kb1 {[%clk 0:00:06.7]} 52. Kd2
{[%clk 0:00:08.4]} 52... a3 {[%clk 0:00:06.6]} 53. N5d3 {[%clk 0:00:06.5]} 53...
a2 {[%clk 0:00:06.5]} 54. Nxa2 {[%clk 0:00:06.6]} 54... Kxa2 {[%clk 0:00:07.1]}
55. Nb4+ {[%clk 0:00:06.8]} 55... Kb3 {[%clk 0:00:06.7]} 56. Nxc2 {[%clk
0:00:07.7]} 56... c5 {[%clk 0:00:07]} 57. Kc1 {[%clk 0:00:07.5]} 57... Kc3
{[%clk 0:00:07.2]} 58. Ne1 {[%clk 0:00:07.7]} 58... Bg4 {[%clk 0:00:04.3]} 59.
Nc2 {[%clk 0:00:06]} 59... Kd3 {[%clk 0:00:04.5]} 60. Na1 {[%clk 0:00:04.3]}
60... Be6 {[%clk 0:00:04.7]} 61. Nc2 {[%clk 0:00:04.3]} 61... Bd5 {[%clk
0:00:04.8]} 62. Ne1+ {[%clk 0:00:04.4]} 62... Ke2 {[%clk 0:00:05.1]} 63. Nc2
{[%clk 0:00:05]} 63... Be6 {[%clk 0:00:05.1]} 64. Kb2 {[%clk 0:00:04.4]} 64...
Kd2 {[%clk 0:00:05.2]} 65. Na3 {[%clk 0:00:04.7]} 65... Bd5 {[%clk 0:00:05.4]}
66. Nb5 {[%clk 0:00:05]} 66... c4 {[%clk 0:00:05.5]} 67. Nc3 {[%clk 0:00:05.4]}
67... Bc6 {[%clk 0:00:06.3]} 68. Nb1+ {[%clk 0:00:05.9]} 68... Kd3 {[%clk
0:00:07]} 69. Nc3 {[%clk 0:00:06.3]} 1/2-1/2

[Event "Early-Titled-Tuesday-Blitz-November-28-2023"]
[Site "Chess.com"]
[Date "2023.11.28"]
[Round "9"]
[White "M1711"]
[Black "Witik"]
[Result "0-1"]
[WhiteElo "2605"]
[BlackElo "2795"]
[TimeControl "180+1"]
[EndTime "9:53:18 PST"]
[Termination "Witik won by checkmate"]

1. d4 {[%clk 0:03:00.9]} 1... Nf6 {[%clk 0:02:57.5]} 2. Bg5 {[%clk 0:03:00.3]}
2... d5 {[%clk 0:02:56.9]} 3. e3 {[%clk 0:02:59.2]} 3... c5 {[%clk 0:02:56.1]}
4. Bxf6 {[%clk 0:02:56.2]} 4... gxf6 {[%clk 0:02:55.6]} 5. dxc5 {[%clk
0:02:53.7]} 5... e6 {[%clk 0:02:53.8]} 6. c4 {[%clk 0:02:53.9]} 6... dxc4 {[%clk
0:02:49.1]} 7. Nd2 {[%clk 0:02:53.7]} 7... Bxc5 {[%clk 0:02:37.7]} 8. Bxc4
{[%clk 0:02:51.9]} 8... Nc6 {[%clk 0:02:37.7]} 9. Qh5 {[%clk 0:02:50.9]} 9...
Qe7 {[%clk 0:02:28.6]} 10. Ngf3 {[%clk 0:02:49.4]} 10... Bd7 {[%clk 0:02:28.8]}
11. a3 {[%clk 0:02:48.7]} 11... O-O-O {[%clk 0:02:26.2]} 12. b4 {[%clk
0:02:42.4]} 12... Bb6 {[%clk 0:02:23.6]} 13. O-O {[%clk 0:02:27.6]} 13... Kb8
{[%clk 0:02:20.8]} 14. Be2 {[%clk 0:02:16.6]} 14... Bc8 {[%clk 0:02:11.2]} 15.
Nc4 {[%clk 0:02:15.2]} 15... Bc7 {[%clk 0:02:11.4]} 16. Qh4 {[%clk 0:02:01.9]}
16... h5 {[%clk 0:01:59.8]} 17. b5 {[%clk 0:02:00.3]} 17... Na5 {[%clk
0:01:58.1]} 18. b6 {[%clk 0:01:41.6]} 18... axb6 {[%clk 0:01:56.6]} 19. Nd4
{[%clk 0:01:32.9]} 19... Nxc4 {[%clk 0:01:35.1]} 20. Bxc4 {[%clk 0:01:32.9]}
20... Rhg8 {[%clk 0:01:29]} 21. f3 {[%clk 0:01:05.8]} 21... Qc5 {[%clk
0:01:20.7]} 22. Rfc1 {[%clk 0:01:04]} 22... Qg5 {[%clk 0:01:17.1]} 23. Qxg5
{[%clk 0:00:56.4]} 23... fxg5 {[%clk 0:01:16.7]} 24. Rab1 {[%clk 0:00:52.1]}
24... Be5 {[%clk 0:01:16.4]} 25. Ne2 {[%clk 0:00:43.7]} 25... Rd2 {[%clk
0:01:15.3]} 26. Rxb6 {[%clk 0:00:40.1]} 26... g4 {[%clk 0:01:06.4]} 27. f4
{[%clk 0:00:34.3]} 27... Bd6 {[%clk 0:01:06.7]} 28. Rcb1 {[%clk 0:00:29.9]}
28... Bc5 {[%clk 0:00:57.9]} 29. R6b3 {[%clk 0:00:28.1]} 29... h4 {[%clk
0:00:54.1]} 30. Kf2 {[%clk 0:00:20]} 30... b6 {[%clk 0:00:45.5]} 31. a4 {[%clk
0:00:16.9]} 31... Kc7 {[%clk 0:00:45.9]} 32. Ke1 {[%clk 0:00:14.9]} 32... Rgd8
{[%clk 0:00:43.6]} 33. Nc3 {[%clk 0:00:13.9]} 33... Rxg2 {[%clk 0:00:40.2]} 34.
Ne4 {[%clk 0:00:12.9]} 34... Rxh2 {[%clk 0:00:34.6]} 35. a5 {[%clk 0:00:12.2]}
35... Rh1+ {[%clk 0:00:32.4]} 36. Ke2 {[%clk 0:00:12.7]} 36... Rxb1 {[%clk
0:00:32.4]} 37. Rxb1 {[%clk 0:00:11.9]} 37... Bd7 {[%clk 0:00:23.1]} 38. axb6+
{[%clk 0:00:09.9]} 38... Bxb6 {[%clk 0:00:23.1]} 39. Rg1 {[%clk 0:00:05.2]}
39... Bc6 {[%clk 0:00:22.6]} 40. Ng5 {[%clk 0:00:03]} 40... h3 {[%clk
0:00:20.4]} 41. Rxg4 {[%clk 0:00:01.8]} 41... h2 {[%clk 0:00:20.9]} 42. Rh4
{[%clk 0:00:01.7]} 42... h1=Q {[%clk 0:00:21.5]} 43. Rxh1 {[%clk 0:00:01.9]}
43... Bxh1 {[%clk 0:00:22.4]} 44. Nxf7 {[%clk 0:00:01.8]} 44... Ra8 {[%clk
0:00:19.4]} 45. Bxe6 {[%clk 0:00:01.4]} 45... Ra3 {[%clk 0:00:19.6]} 46. Kd2
{[%clk 0:00:01.4]} 46... Bxe3+ {[%clk 0:00:18]} 47. Kc2 {[%clk 0:00:02]} 47...
Bxf4 {[%clk 0:00:18.9]} 48. Bb3 {[%clk 0:00:01.2]} 48... Rxb3 {[%clk 0:00:11.8]}
49. Kxb3 {[%clk 0:00:02.1]} 49... Bd5+ {[%clk 0:00:11.8]} 50. Kb4 {[%clk
0:00:03]} 50... Bxf7 {[%clk 0:00:12.1]} 51. Kc5 {[%clk 0:00:03.9]} 51... Be5
{[%clk 0:00:11.7]} 52. Kb5 {[%clk 0:00:03.9]} 52... Bd5 {[%clk 0:00:11.1]} 53.
Kc5 {[%clk 0:00:04.4]} 53... Bb7 {[%clk 0:00:10.5]} 54. Kc4 {[%clk 0:00:05.3]}
54... Kc6 {[%clk 0:00:10.7]} 55. Kb4 {[%clk 0:00:05.8]} 55... Kb6 {[%clk
0:00:10]} 56. Kc4 {[%clk 0:00:06.7]} 56... Bc6 {[%clk 0:00:09.9]} 57. Kb4 {[%clk
0:00:07.3]} 57... Bd5 {[%clk 0:00:09.3]} 58. Ka4 {[%clk 0:00:06.6]} 58... Kc5
{[%clk 0:00:09.7]} 59. Ka5 {[%clk 0:00:07.1]} 59... Bc3+ {[%clk 0:00:09.7]} 60.
Ka4 {[%clk 0:00:07.8]} 60... Bc4 {[%clk 0:00:09.3]} 61. Ka3 {[%clk 0:00:08.4]}
61... Be5 {[%clk 0:00:08.7]} 62. Ka4 {[%clk 0:00:09.3]} 62... Bc7 {[%clk
0:00:09.3]} 63. Ka3 {[%clk 0:00:10.2]} 63... Kb5 {[%clk 0:00:09.7]} 64. Kb2
{[%clk 0:00:10.6]} 64... Kb4 {[%clk 0:00:09.4]} 65. Kc2 {[%clk 0:00:11.5]} 65...
Bf4 {[%clk 0:00:09.6]} 66. Kd1 {[%clk 0:00:11.8]} 66... Kc3 {[%clk 0:00:09.5]}
67. Ke1 {[%clk 0:00:12.7]} 67... Be3 {[%clk 0:00:08.2]} 68. Kd1 {[%clk
0:00:13.1]} 68... Kd3 {[%clk 0:00:08.8]} 69. Ke1 {[%clk 0:00:14]} 69... Ke4
{[%clk 0:00:08]} 70. Kd1 {[%clk 0:00:14.9]} 70... Bd3 {[%clk 0:00:07.5]} 71. Ke1
{[%clk 0:00:15.5]} 71... Kf3 {[%clk 0:00:08]} 72. Kd1 {[%clk 0:00:16.4]} 72...
Bf4 {[%clk 0:00:08.3]} 73. Ke1 {[%clk 0:00:16.9]} 73... Ke3 {[%clk 0:00:07.7]}
74. Kd1 {[%clk 0:00:17.8]} 74... Bg3 {[%clk 0:00:07.4]} 75. Kc1 {[%clk
0:00:18.2]} 75... Bf2 {[%clk 0:00:07.4]} 76. Kb2 {[%clk 0:00:18.8]} 76... Kd4
{[%clk 0:00:07.7]} 77. Kb3 {[%clk 0:00:19.7]} 77... Be1 {[%clk 0:00:06.7]} 78.
Kb2 {[%clk 0:00:20.1]} 78... Kc4 {[%clk 0:00:07.1]} 79. Kc1 {[%clk 0:00:20.9]}
79... Kc3 {[%clk 0:00:06.7]} 80. Kd1 {[%clk 0:00:21.8]} 80... Bh4 {[%clk
0:00:07.2]} 81. Kc1 {[%clk 0:00:22.7]} 81... Be2 {[%clk 0:00:07.5]} 82. Kb1
{[%clk 0:00:23.1]} 82... Kb3 {[%clk 0:00:08]} 83. Kc1 {[%clk 0:00:23.5]} 83...
Bg5+ {[%clk 0:00:08.5]} 84. Kb1 {[%clk 0:00:24.2]} 84... Bd3+ {[%clk 0:00:09.1]}
85. Ka1 {[%clk 0:00:23.3]} 85... Bf6# {[%clk 0:00:09.6]} 0-1

[Event "Early-Titled-Tuesday-Blitz-November-28-2023"]
[Site "Chess.com"]
[Date "2023.11.28"]
[Round "9"]
[White "alexrustemov"]
[Black "BardArtem"]
[Result "1-0"]
[WhiteElo "2868"]
[BlackElo "2764"]
[TimeControl "180+1"]
[EndTime "9:53:24 PST"]
[Termination "alexrustemov won on time"]

1. d4 {[%clk 0:03:00.3]} 1... Nf6 {[%clk 0:02:58.2]} 2. c4 {[%clk 0:03:00.1]}
2... e6 {[%clk 0:02:58.5]} 3. Nf3 {[%clk 0:03:00.3]} 3... d5 {[%clk 0:02:57.6]}
4. Bg5 {[%clk 0:02:59.5]} 4... dxc4 {[%clk 0:02:54.8]} 5. Qa4+ {[%clk
0:02:59.2]} 5... Nbd7 {[%clk 0:02:52.9]} 6. Qxc4 {[%clk 0:02:58.8]} 6... a6
{[%clk 0:02:48.9]} 7. g3 {[%clk 0:02:50.5]} 7... b5 {[%clk 0:02:47.4]} 8. Qc6
{[%clk 0:02:50.3]} 8... Rb8 {[%clk 0:02:47.2]} 9. Bg2 {[%clk 0:02:46.1]} 9...
Bb7 {[%clk 0:02:44.1]} 10. Qc2 {[%clk 0:02:46.3]} 10... h6 {[%clk 0:02:43.3]}
11. Bxf6 {[%clk 0:02:45.1]} 11... Nxf6 {[%clk 0:02:43.1]} 12. O-O {[%clk
0:02:43.3]} 12... Be7 {[%clk 0:02:42.8]} 13. Rd1 {[%clk 0:02:37]} 13... O-O
{[%clk 0:02:42.1]} 14. Ne5 {[%clk 0:02:36.2]} 14... Bxg2 {[%clk 0:02:40.7]} 15.
Kxg2 {[%clk 0:02:37.1]} 15... Qd5+ {[%clk 0:02:30.8]} 16. Nf3 {[%clk 0:02:25.2]}
16... c5 {[%clk 0:02:26.1]} 17. dxc5 {[%clk 0:02:17.1]} 17... Qxc5 {[%clk
0:02:27]} 18. Qxc5 {[%clk 0:02:16.8]} 18... Bxc5 {[%clk 0:02:27.3]} 19. Nbd2
{[%clk 0:02:10.4]} 19... Rfd8 {[%clk 0:02:21.8]} 20. Nb3 {[%clk 0:02:07.1]}
20... Bb6 {[%clk 0:02:20.2]} 21. Ne5 {[%clk 0:02:07.1]} 21... Rbc8 {[%clk
0:02:06.1]} 22. Rxd8+ {[%clk 0:02:03.6]} 22... Rxd8 {[%clk 0:02:02.2]} 23. Rc1
{[%clk 0:02:01]} 23... Nd5 {[%clk 0:01:44.7]} 24. Rc6 {[%clk 0:01:56.2]} 24...
Rb8 {[%clk 0:01:30.4]} 25. Nd7 {[%clk 0:01:48.6]} 25... Rb7 {[%clk 0:01:10.3]}
26. Rc8+ {[%clk 0:01:48]} 26... Kh7 {[%clk 0:01:10.6]} 27. Nf8+ {[%clk
0:01:48.7]} 27... Kg8 {[%clk 0:01:07.8]} 28. Nxe6+ {[%clk 0:01:49.2]} 28... Kh7
{[%clk 0:01:08.3]} 29. Nf8+ {[%clk 0:01:42.2]} 29... Kg8 {[%clk 0:01:09.2]} 30.
Nd7+ {[%clk 0:01:42.3]} 30... Kh7 {[%clk 0:01:08.8]} 31. Nxb6 {[%clk 0:01:40.9]}
31... Rxb6 {[%clk 0:01:07.2]} 32. Nc5 {[%clk 0:01:33.6]} 32... Rd6 {[%clk
0:00:44.4]} 33. Nd3 {[%clk 0:01:29.5]} 33... f6 {[%clk 0:00:31]} 34. Kf3 {[%clk
0:01:24.8]} 34... Nb6 {[%clk 0:00:29.2]} 35. Rc7 {[%clk 0:01:20.8]} 35... Nc4
{[%clk 0:00:20.6]} 36. b3 {[%clk 0:01:18.3]} 36... Nd2+ {[%clk 0:00:20.9]} 37.
Kg2 {[%clk 0:01:12.8]} 37... Ne4 {[%clk 0:00:21.2]} 38. h4 {[%clk 0:01:09.9]}
38... Rd5 {[%clk 0:00:05.6]} 39. f3 {[%clk 0:01:04.3]} 39... Nd2 {[%clk
0:00:02.7]} 40. Nf4 {[%clk 0:01:02.5]} 40... Rd8 {[%clk 0:00:01.6]} 41. Rxg7+
{[%clk 0:00:57.5]} 41... Kxg7 {[%clk 0:00:01.5]} 42. Ne6+ {[%clk 0:00:58.2]}
42... Kf7 {[%clk 0:00:02]} 43. Nxd8+ {[%clk 0:00:59]} 43... Ke7 {[%clk
0:00:02.1]} 44. Nc6+ {[%clk 0:00:55.2]} 44... Kd6 {[%clk 0:00:02.6]} 45. Nd4
{[%clk 0:00:55.6]} 45... Kc5 {[%clk 0:00:02.4]} 46. Nc2 {[%clk 0:00:50.9]} 46...
Nb1 {[%clk 0:00:01.6]} 47. Kf2 {[%clk 0:00:49.5]} 47... Nc3 {[%clk 0:00:02.1]}
48. a3 {[%clk 0:00:49.1]} 48... a5 {[%clk 0:00:01.9]} 49. g4 {[%clk 0:00:48.7]}
49... a4 {[%clk 0:00:01.8]} 50. bxa4 {[%clk 0:00:46.9]} 50... bxa4 {[%clk
0:00:02.7]} 51. Ke3 {[%clk 0:00:38.9]} 51... Kc4 {[%clk 0:00:02.7]} 52. Kd2
{[%clk 0:00:30.4]} 52... Nd5 {[%clk 0:00:01.6]} 53. e4 {[%clk 0:00:25.9]} 53...
Nf4 {[%clk 0:00:01.8]} 54. Ne3+ {[%clk 0:00:23.7]} 54... Kb3 {[%clk 0:00:02.2]}
55. Nd5 {[%clk 0:00:24]} 55... Ng2 {[%clk 0:00:01.6]} 56. h5 {[%clk 0:00:21.5]}
56... Kxa3 {[%clk 0:00:02.2]} 57. Kc3 {[%clk 0:00:19.4]} 57... Nh4 {[%clk
0:00:02.3]} 58. f4 {[%clk 0:00:18.7]} 58... Ng2 {[%clk 0:00:01.1]} 59. f5 {[%clk
0:00:17.8]} 59... Ne1 {[%clk 0:00:01.2]} 60. Nxf6 {[%clk 0:00:17.4]} 60... Nf3
{[%clk 0:00:02]} 61. Nd5 {[%clk 0:00:17.4]} 61... Ne5 {[%clk 0:00:01.9]} 62. f6
{[%clk 0:00:15.5]} 62... Ka2 {[%clk 0:00:02.5]} 63. Kd4 {[%clk 0:00:13.8]} 63...
Nf3+ {[%clk 0:00:01.4]} 64. Ke3 {[%clk 0:00:13.8]} 64... Ne5 {[%clk 0:00:02.2]}
65. Kf4 {[%clk 0:00:14]} 65... Nf7 {[%clk 0:00:02.5]} 66. Nc3+ {[%clk
0:00:14.4]} 66... Kb3 {[%clk 0:00:01.6]} 67. Nxa4 {[%clk 0:00:15.3]} 67... Kxa4
{[%clk 0:00:01.5]} 68. e5 {[%clk 0:00:15]} 68... Kb5 {[%clk 0:00:02]} 69. e6
{[%clk 0:00:14.9]} 69... Kc6 {[%clk 0:00:02.1]} 70. exf7 {[%clk 0:00:14.8]}
70... Kd5 {[%clk 0:00:02.6]} 71. f8=Q {[%clk 0:00:14.6]} 71... Kd4 {[%clk
0:00:02.3]} 72. Qxh6 {[%clk 0:00:14.4]} 72... Kd3 {[%clk 0:00:03.2]} 73. f7
{[%clk 0:00:14.8]} 73... Ke2 {[%clk 0:00:04.1]} 74. f8=Q {[%clk 0:00:14.9]}
74... Kf2 {[%clk 0:00:05]} 75. Kg5+ {[%clk 0:00:13.7]} 75... Kg2 {[%clk
0:00:05.9]} 76. Qhf6 {[%clk 0:00:13.4]} 76... Kh3 {[%clk 0:00:04.9]} 77. Qf3+
{[%clk 0:00:13.2]} 77... Kh2 {[%clk 0:00:04]} 78. Q8f4+ {[%clk 0:00:13.1]} 1-0